[Event "*** Qualifier 3: Titled Tuesday 3|2 Blitz"]
[Site "Chess.com"]
[Date "2017.04.18"]
[Round "10"]
[White "Aygehovit1992"]
[Black "WanderingPuppet"]
[Result "1-0"]
[WhiteElo "2428"]
[BlackElo "2308"]
[TimeControl "180+2"]
[EndTime "15:16:58 PDT"]
[Termination "Aygehovit1992 won by resignation"]

1. e4 {[%clk 0:03:02]} 1... c5 {[%clk 0:02:48.4]} 2. Nf3 {[%clk 0:03:02.7]} 2...
e6 {[%clk 0:02:49.1]} 3. d4 {[%clk 0:03:03.5]} 3... cxd4 {[%clk 0:02:51]} 4.
Nxd4 {[%clk 0:03:05.2]} 4... a6 {[%clk 0:02:52.3]} 5. Nc3 {[%clk 0:03:06.2]}
5... b5 {[%clk 0:02:52.5]} 6. Bd3 {[%clk 0:03:05.5]} 6... Bb7 {[%clk 0:02:47.7]}
7. O-O {[%clk 0:03:04.8]} 7... d6 {[%clk 0:02:37.5]} 8. Re1 {[%clk 0:03:02.3]}
8... Nd7 {[%clk 0:02:19.4]} 9. a4 {[%clk 0:03:01.8]} 9... b4 {[%clk 0:02:19.6]}
10. Nd5 {[%clk 0:03:03]} 10... Ngf6 {[%clk 0:02:00.2]} 11. Nxb4 {[%clk
0:03:00.7]} 11... Qc7 {[%clk 0:01:37.7]} 12. c4 {[%clk 0:02:52.3]} 12... g6
{[%clk 0:01:29.2]} 13. a5 {[%clk 0:02:45.1]} 13... Bg7 {[%clk 0:01:25.1]} 14.
Nbc2 {[%clk 0:02:46.6]} 14... O-O {[%clk 0:01:25.4]} 15. b3 {[%clk 0:02:46.5]}
15... Nc5 {[%clk 0:01:19.2]} 16. Bb2 {[%clk 0:02:46.3]} 16... Ncxe4 {[%clk
0:01:07.8]} 17. Bf1 {[%clk 0:02:41.4]} 17... d5 {[%clk 0:01:01.5]} 18. Ne3
{[%clk 0:02:33.1]} 18... Nxf2 {[%clk 0:00:45.5]} 19. Kxf2 {[%clk 0:02:33.4]}
19... Qxh2 {[%clk 0:00:47.1]} 20. Bd3 {[%clk 0:02:04.8]} 20... dxc4 {[%clk
0:00:41]} 21. bxc4 {[%clk 0:02:05.2]} 21... Rfd8 {[%clk 0:00:31.4]} 22. Nf3
{[%clk 0:01:42.6]} 22... Qf4 {[%clk 0:00:32.1]} 23. Be5 {[%clk 0:01:28.3]} 23...
Ne4+ {[%clk 0:00:31.1]} 24. Bxe4 {[%clk 0:01:28.5]} 24... Bxe5 {[%clk
0:00:28.8]} 25. Bxb7 {[%clk 0:01:21.1]} 25... Rxd1 {[%clk 0:00:25.1]} 26. Raxd1
{[%clk 0:01:23]} 26... Rb8 {[%clk 0:00:22.3]} 27. Bxa6 {[%clk 0:01:23.8]} 27...
Rb2+ {[%clk 0:00:19.7]} 28. Re2 {[%clk 0:01:24.4]} 28... Qg3+ {[%clk 0:00:14.8]}
29. Kf1 {[%clk 0:01:25.3]} 29... Rxe2 {[%clk 0:00:12.9]} 30. Kxe2 {[%clk
0:01:27.2]} 30... Bf4 {[%clk 0:00:10.9]} 31. Bb7 {[%clk 0:01:25.9]} 31... Bxe3
{[%clk 0:00:09]} 32. Kxe3 {[%clk 0:01:27.1]} 32... Qxg2 {[%clk 0:00:10.1]} 33.
a6 {[%clk 0:01:28.4]} 33... Qa2 {[%clk 0:00:06.8]} 34. c5 {[%clk 0:01:27.3]}
34... Qa5 {[%clk 0:00:05.1]} 35. c6 {[%clk 0:01:22.8]} 35... Kg7 {[%clk
0:00:05.8]} 36. Rd7 {[%clk 0:01:18.1]} 36... Qb6+ {[%clk 0:00:05.3]} 37. Kd3
{[%clk 0:01:18.9]} 37... Qb3+ {[%clk 0:00:04.3]} 38. Ke2 {[%clk 0:01:19.8]}
38... Qb2+ {[%clk 0:00:04.3]} 39. Nd2 {[%clk 0:01:20.3]} 39... Qb5+ {[%clk
0:00:04.8]} 40. Kd1 {[%clk 0:01:21.3]} 40... Qa4+ {[%clk 0:00:03.6]} 41. Ke1
{[%clk 0:01:20.2]} 41... Qa1+ {[%clk 0:00:03.1]} 42. Kf2 {[%clk 0:01:20.9]}
42... Qa5 {[%clk 0:00:03.5]} 43. c7 {[%clk 0:01:18.5]} 43... Qf5+ {[%clk
0:00:04.4]} 44. Ke1 {[%clk 0:01:18.4]} 44... Qe5+ {[%clk 0:00:04.1]} 45. Kd1
{[%clk 0:01:18.7]} 45... Qa1+ {[%clk 0:00:04.8]} 46. Ke2 {[%clk 0:01:18.5]}
46... Qe5+ {[%clk 0:00:05.3]} 47. Kf3 {[%clk 0:01:17.7]} 47... Qf5+ {[%clk
0:00:05.2]} 48. Kg2 {[%clk 0:01:17]} 48... Qg5+ {[%clk 0:00:05.5]} 49. Kf1
{[%clk 0:01:17.1]} 49... Qf5+ {[%clk 0:00:05.6]} 50. Nf3 {[%clk 0:01:15.2]}
50... Qb5+ {[%clk 0:00:05.4]} 51. Kg2 {[%clk 0:01:16]} 51... Qxd7 {[%clk
0:00:04.5]} 52. c8=Q {[%clk 0:01:17.3]} 52... Qa4 {[%clk 0:00:04.8]} 53. Qc3+
{[%clk 0:01:17.5]} 53... Kg8 {[%clk 0:00:04.7]} 54. Qd4 {[%clk 0:01:19]} 54...
Qa2+ {[%clk 0:00:05.2]} 55. Kg3 {[%clk 0:01:20.3]} 55... h6 {[%clk 0:00:05.3]}
56. a7 {[%clk 0:01:21.1]} 56... Kh7 {[%clk 0:00:03.6]} 57. a8=Q {[%clk
0:01:21.8]} 1-0

[Event "*** Qualifier 3: Titled Tuesday 3|2 Blitz"]
[Site "Chess.com"]
[Date "2017.04.18"]
[Round "10"]
[White "Enzy63"]
[Black "saraswathii"]
[Result "1-0"]
[WhiteElo "2017"]
[BlackElo "2212"]
[TimeControl "180+2"]
[EndTime "15:17:02 PDT"]
[Termination "Enzy63 won by resignation"]

1. d4 {[%clk 0:03:02]} 1... d5 {[%clk 0:02:59.4]} 2. Nf3 {[%clk 0:03:02.9]} 2...
Nf6 {[%clk 0:02:57.6]} 3. c4 {[%clk 0:03:03.8]} 3... e6 {[%clk 0:02:55.1]} 4. g3
{[%clk 0:03:03.7]} 4... c5 {[%clk 0:02:55.6]} 5. cxd5 {[%clk 0:03:03.6]} 5...
exd5 {[%clk 0:02:55]} 6. Bg2 {[%clk 0:03:05]} 6... Be6 {[%clk 0:02:55.4]} 7. O-O
{[%clk 0:03:02.1]} 7... Nc6 {[%clk 0:02:55.9]} 8. Nc3 {[%clk 0:03:02.5]} 8... c4
{[%clk 0:02:55.9]} 9. Ne5 {[%clk 0:02:53.9]} 9... Qb6 {[%clk 0:02:41.9]} 10.
Nxc6 {[%clk 0:02:31.6]} 10... bxc6 {[%clk 0:02:40.8]} 11. e4 {[%clk 0:02:16.4]}
11... Bb4 {[%clk 0:02:30.9]} 12. e5 {[%clk 0:02:00.6]} 12... Nd7 {[%clk
0:02:22.6]} 13. f4 {[%clk 0:01:52.3]} 13... g6 {[%clk 0:02:22.2]} 14. Be3 {[%clk
0:01:43.1]} 14... h5 {[%clk 0:02:19.1]} 15. h3 {[%clk 0:01:28.6]} 15... Ba5
{[%clk 0:01:52.4]} 16. Na4 {[%clk 0:01:12]} 16... Qb4 {[%clk 0:01:44.5]} 17. Rc1
{[%clk 0:01:01.9]} 17... Bf5 {[%clk 0:01:33]} 18. Rf2 {[%clk 0:00:52.3]} 18...
Qe7 {[%clk 0:01:22.9]} 19. b3 {[%clk 0:00:51.3]} 19... Bd3 {[%clk 0:01:09.3]}
20. Bf1 {[%clk 0:00:50.7]} 20... Bxf1 {[%clk 0:01:08.1]} 21. Rxf1 {[%clk
0:00:51.5]} 21... cxb3 {[%clk 0:01:08.9]} 22. axb3 {[%clk 0:00:50.1]} 22... Qe6
{[%clk 0:01:09.5]} 23. Kg2 {[%clk 0:00:45.7]} 23... Rb8 {[%clk 0:01:06.4]} 24.
g4 {[%clk 0:00:30.3]} 24... hxg4 {[%clk 0:01:01.7]} 25. hxg4 {[%clk 0:00:31.7]}
25... g5 {[%clk 0:00:16.8]} 26. f5 {[%clk 0:00:32.3]} 26... Qh6 {[%clk
0:00:17.5]} 27. Rh1 {[%clk 0:00:31.4]} 27... Qxh1+ {[%clk 0:00:18.1]} 28. Qxh1
{[%clk 0:00:30.1]} 28... Rxh1 {[%clk 0:00:20]} 29. Rxh1 {[%clk 0:00:32]} 29...
Bd8 {[%clk 0:00:20.6]} 30. Rh8+ {[%clk 0:00:23]} 30... Nf8 {[%clk 0:00:21.5]}
31. Nc5 {[%clk 0:00:24.1]} 31... a5 {[%clk 0:00:22]} 32. f6 {[%clk 0:00:22.2]}
32... Bb6 {[%clk 0:00:18.6]} 33. Bxg5 {[%clk 0:00:15.5]} 33... Bxc5 {[%clk
0:00:19.9]} 34. dxc5 {[%clk 0:00:15.2]} 34... Kd7 {[%clk 0:00:18.5]} 35. Bh6
{[%clk 0:00:13.9]} 35... Rb4 {[%clk 0:00:19.5]} 36. Rxf8 {[%clk 0:00:12.6]}
36... Rxg4+ {[%clk 0:00:20.2]} 37. Kf3 {[%clk 0:00:13.9]} 37... Rb4 {[%clk
0:00:20.3]} 38. Rxf7+ {[%clk 0:00:13.7]} 38... Ke6 {[%clk 0:00:21.4]} 1-0

[Event "*** Qualifier 3: Titled Tuesday 3|2 Blitz"]
[Site "Chess.com"]
[Date "2017.04.18"]
[Round "10"]
[White "djano"]
[Black "GianmarcoVaR"]
[Result "1-0"]
[WhiteElo "2437"]
[BlackElo "2469"]
[TimeControl "180+2"]
[EndTime "15:17:11 PDT"]
[Termination "djano won on time"]

1. d4 {[%clk 0:03:02]} 1... Nf6 {[%clk 0:03:00.5]} 2. Bf4 {[%clk 0:03:02.9]}
2... e6 {[%clk 0:03:01.8]} 3. e3 {[%clk 0:03:03.4]} 3... b6 {[%clk 0:03:03.3]}
4. Nd2 {[%clk 0:03:03.8]} 4... Bb7 {[%clk 0:03:05.2]} 5. Ngf3 {[%clk 0:03:04.8]}
5... g6 {[%clk 0:03:06.8]} 6. Bd3 {[%clk 0:03:03.6]} 6... Bg7 {[%clk 0:03:08.1]}
7. Qe2 {[%clk 0:03:01]} 7... O-O {[%clk 0:03:08.8]} 8. e4 {[%clk 0:02:52.8]}
8... d6 {[%clk 0:03:06.9]} 9. O-O-O {[%clk 0:02:52.8]} 9... a6 {[%clk
0:03:04.9]} 10. h4 {[%clk 0:02:45.4]} 10... Nbd7 {[%clk 0:03:05.5]} 11. h5
{[%clk 0:02:44.8]} 11... Nxh5 {[%clk 0:03:06.1]} 12. Bg5 {[%clk 0:02:19.1]}
12... f6 {[%clk 0:03:01.1]} 13. Be3 {[%clk 0:02:17.9]} 13... f5 {[%clk 0:02:58]}
14. Ng5 {[%clk 0:02:04.4]} 14... f4 {[%clk 0:02:58.8]} 15. Nxe6 {[%clk
0:01:50.9]} 15... Qe7 {[%clk 0:02:59.4]} 16. Bc4 {[%clk 0:01:18.5]} 16... d5
{[%clk 0:01:46.8]} 17. exd5 {[%clk 0:01:08]} 17... fxe3 {[%clk 0:01:40.8]} 18.
Nf3 {[%clk 0:01:00.1]} 18... Nf4 {[%clk 0:01:31.1]} 19. Nxf4 {[%clk 0:00:58.9]}
19... Qd6 {[%clk 0:01:25.8]} 20. fxe3 {[%clk 0:00:54.1]} 20... Rae8 {[%clk
0:01:25.8]} 21. Ne6 {[%clk 0:00:52.4]} 21... Bxd5 {[%clk 0:01:26.4]} 22. Bxd5
{[%clk 0:00:53.8]} 22... Qxd5 {[%clk 0:01:27.2]} 23. Nxf8 {[%clk 0:00:51.9]}
23... Nxf8 {[%clk 0:01:25.5]} 24. Kb1 {[%clk 0:00:52.4]} 24... Ne6 {[%clk
0:01:23.1]} 25. Rhe1 {[%clk 0:00:49.1]} 25... b5 {[%clk 0:01:15.3]} 26. e4
{[%clk 0:00:47.7]} 26... Qd6 {[%clk 0:01:14.8]} 27. e5 {[%clk 0:00:48.9]} 27...
Qd5 {[%clk 0:01:15.5]} 28. Qe4 {[%clk 0:00:50.1]} 28... Rd8 {[%clk 0:01:10.7]}
29. Qxd5 {[%clk 0:00:50.3]} 29... Rxd5 {[%clk 0:01:12.6]} 30. c3 {[%clk
0:00:50.5]} 30... h5 {[%clk 0:01:10]} 31. Nd2 {[%clk 0:00:50.4]} 31... c5 {[%clk
0:01:09]} 32. dxc5 {[%clk 0:00:48.7]} 32... Rxc5 {[%clk 0:01:04.8]} 33. Nf3
{[%clk 0:00:46.8]} 33... g5 {[%clk 0:00:44.2]} 34. Rd6 {[%clk 0:00:46.5]} 34...
Kf7 {[%clk 0:00:45.4]} 35. Rxa6 {[%clk 0:00:44.6]} 35... g4 {[%clk 0:00:45.6]}
36. Nd4 {[%clk 0:00:44.7]} 36... Nc7 {[%clk 0:00:37.5]} 37. Ra7 {[%clk
0:00:41.6]} 37... Kg6 {[%clk 0:00:31.1]} 38. e6 {[%clk 0:00:39.6]} 38... b4
{[%clk 0:00:30.2]} 39. e7 {[%clk 0:00:37.8]} 39... Ne8 {[%clk 0:00:22.3]} 40.
Ra8 {[%clk 0:00:35.1]} 40... Kf7 {[%clk 0:00:20.8]} 41. Rf1+ {[%clk 0:00:30.8]}
41... Kxe7 {[%clk 0:00:19.8]} 42. Nf5+ {[%clk 0:00:32]} 42... Kd7 {[%clk
0:00:20.3]} 43. Ra7+ {[%clk 0:00:29.4]} 43... Rc7 {[%clk 0:00:13.1]} 44. Rxc7+
{[%clk 0:00:28.9]} 44... Nxc7 {[%clk 0:00:14.7]} 45. Nxg7 {[%clk 0:00:29.7]}
45... bxc3 {[%clk 0:00:15.7]} 46. bxc3 {[%clk 0:00:29.6]} 46... Nd5 {[%clk
0:00:17.6]} 47. Nxh5 {[%clk 0:00:27.3]} 1-0

[Event "*** Qualifier 3: Titled Tuesday 3|2 Blitz"]
[Site "Chess.com"]
[Date "2017.04.18"]
[Round "10"]
[White "scrapnel"]
[Black "DavidMarkosyan"]
[Result "1-0"]
[WhiteElo "2409"]
[BlackElo "2334"]
[TimeControl "180+2"]
[EndTime "15:17:14 PDT"]
[Termination "scrapnel won by resignation"]

1. Nf3 {[%clk 0:03:02]} 1... Nf6 {[%clk 0:03:00]} 2. c4 {[%clk 0:03:02.6]} 2...
g6 {[%clk 0:03:00]} 3. Nc3 {[%clk 0:03:03.2]} 3... Bg7 {[%clk 0:03:01.5]} 4. e4
{[%clk 0:03:04.5]} 4... d6 {[%clk 0:03:03.1]} 5. d4 {[%clk 0:03:06.1]} 5... O-O
{[%clk 0:03:04.7]} 6. Be2 {[%clk 0:03:07.7]} 6... e5 {[%clk 0:03:05.2]} 7. dxe5
{[%clk 0:03:09]} 7... dxe5 {[%clk 0:03:05.9]} 8. Qxd8 {[%clk 0:03:10.6]} 8...
Rxd8 {[%clk 0:03:07.5]} 9. Bg5 {[%clk 0:03:12]} 9... Nbd7 {[%clk 0:03:08.2]} 10.
O-O-O {[%clk 0:03:11.7]} 10... Rf8 {[%clk 0:03:08.4]} 11. Nd2 {[%clk 0:03:11.8]}
11... c6 {[%clk 0:03:09.3]} 12. Be3 {[%clk 0:03:07.2]} 12... Re8 {[%clk
0:03:07.3]} 13. g4 {[%clk 0:03:01.3]} 13... Nf8 {[%clk 0:02:52.5]} 14. g5 {[%clk
0:02:54.3]} 14... Ng4 {[%clk 0:02:50.8]} 15. Bxg4 {[%clk 0:02:48]} 15... Bxg4
{[%clk 0:02:51.1]} 16. f3 {[%clk 0:02:48.7]} 16... Bh5 {[%clk 0:02:49.6]} 17.
Rhf1 {[%clk 0:02:43.6]} 17... Ne6 {[%clk 0:02:50.5]} 18. c5 {[%clk 0:02:13.2]}
18... Nd4 {[%clk 0:02:47.9]} 19. Bxd4 {[%clk 0:02:11.7]} 19... exd4 {[%clk
0:02:48.2]} 20. Ne2 {[%clk 0:02:12.3]} 20... b6 {[%clk 0:02:38.6]} 21. Nb3
{[%clk 0:02:03.8]} 21... Rxe4 {[%clk 0:02:27.7]} 22. Ng3 {[%clk 0:01:49.5]}
22... Rf4 {[%clk 0:02:18.3]} 23. Nxh5 {[%clk 0:01:43.1]} 23... gxh5 {[%clk
0:02:18.6]} 24. Rd3 {[%clk 0:01:34.8]} 24... Rd8 {[%clk 0:02:08.4]} 25. Kc2
{[%clk 0:01:31.2]} 25... Rd5 {[%clk 0:02:08.7]} 26. cxb6 {[%clk 0:01:26.8]}
26... axb6 {[%clk 0:02:09.4]} 27. Re1 {[%clk 0:01:21.9]} 27... c5 {[%clk
0:01:57.9]} 28. Re8+ {[%clk 0:01:19.2]} 28... Bf8 {[%clk 0:01:58.6]} 29. Nd2
{[%clk 0:01:19.5]} 29... Rxg5 {[%clk 0:01:51.6]} 30. Rb8 {[%clk 0:01:19.6]}
30... Rg6 {[%clk 0:01:49]} 31. Rb3 {[%clk 0:01:14.1]} 31... Rff6 {[%clk
0:01:39.8]} 32. a4 {[%clk 0:01:08.9]} 32... Kg7 {[%clk 0:01:39]} 33. h4 {[%clk
0:01:00.8]} 33... Rg2 {[%clk 0:01:28.6]} 34. Kd3 {[%clk 0:00:57]} 34... Re6
{[%clk 0:01:06.4]} 35. Ne4 {[%clk 0:00:56.5]} 35... Rc6 {[%clk 0:00:53.6]} 36.
R3xb6 {[%clk 0:00:54.4]} 36... Rxb6 {[%clk 0:00:46]} 37. Rxb6 {[%clk 0:00:54.7]}
37... f5 {[%clk 0:00:46.1]} 38. Rb7+ {[%clk 0:00:51.3]} 38... Kg6 {[%clk
0:00:44.7]} 39. Rb6+ {[%clk 0:00:51.8]} 39... Kg7 {[%clk 0:00:43.1]} 40. Ng5
{[%clk 0:00:52]} 40... Be7 {[%clk 0:00:22.1]} 41. Rb7 {[%clk 0:00:52.5]} 41...
Kf6 {[%clk 0:00:22.8]} 42. a5 {[%clk 0:00:51.5]} 42... h6 {[%clk 0:00:21.2]} 43.
a6 {[%clk 0:00:47]} 43... Rg1 {[%clk 0:00:21.6]} 44. Rb6+ {[%clk 0:00:33.1]}
44... Kg7 {[%clk 0:00:21.6]} 45. Ne6+ {[%clk 0:00:33.5]} 45... Kf7 {[%clk
0:00:22.7]} 46. Nc7 {[%clk 0:00:31.3]} 46... Ra1 {[%clk 0:00:22.7]} 47. Rb7
{[%clk 0:00:32.3]} 47... Bd6 {[%clk 0:00:20.8]} 48. Nb5+ {[%clk 0:00:30.2]}
48... Ke6 {[%clk 0:00:22]} 49. Rb6 {[%clk 0:00:31.1]} 49... Ke7 {[%clk
0:00:21.3]} 50. Rxd6 {[%clk 0:00:31.1]} 50... Ra5 {[%clk 0:00:21.2]} 51. Rb6
{[%clk 0:00:31.7]} 51... Kd7 {[%clk 0:00:22.4]} 52. a7 {[%clk 0:00:32.4]} 1-0

[Event "*** Qualifier 3: Titled Tuesday 3|2 Blitz"]
[Site "Chess.com"]
[Date "2017.04.18"]
[Round "10"]
[White "FearNoEvil12"]
[Black "Jamaladam12200620"]
[Result "0-1"]
[WhiteElo "2112"]
[BlackElo "2003"]
[TimeControl "180+2"]
[EndTime "15:17:18 PDT"]
[Termination "Jamaladam12200620 won by resignation"]

1. e4 {[%clk 0:03:02]} 1... Nf6 {[%clk 0:02:59.3]} 2. e5 {[%clk 0:03:02.4]} 2...
Nd5 {[%clk 0:03:00.1]} 3. d4 {[%clk 0:03:03.9]} 3... d6 {[%clk 0:03:00.8]} 4.
Bc4 {[%clk 0:03:05.2]} 4... Nb6 {[%clk 0:03:01.4]} 5. Bb3 {[%clk 0:03:06.6]}
5... dxe5 {[%clk 0:02:59.9]} 6. Qh5 {[%clk 0:03:08.1]} 6... e6 {[%clk
0:02:48.5]} 7. dxe5 {[%clk 0:03:09.4]} 7... Nc6 {[%clk 0:02:38.5]} 8. Nf3 {[%clk
0:03:09.6]} 8... Be7 {[%clk 0:02:32.4]} 9. Nc3 {[%clk 0:03:08.5]} 9... O-O
{[%clk 0:02:31.3]} 10. Bf4 {[%clk 0:02:56]} 10... a5 {[%clk 0:02:18.7]} 11. a4
{[%clk 0:02:55.1]} 11... Nb4 {[%clk 0:02:17.6]} 12. Rd1 {[%clk 0:02:54]} 12...
Qe8 {[%clk 0:02:17.7]} 13. Qg4 {[%clk 0:02:25.8]} 13... Kh8 {[%clk 0:02:03.2]}
14. h4 {[%clk 0:02:24.8]} 14... Bd7 {[%clk 0:01:59.4]} 15. Ne4 {[%clk
0:02:19.9]} 15... Bxa4 {[%clk 0:01:49.7]} 16. Bxa4 {[%clk 0:02:19.3]} 16... Qxa4
{[%clk 0:01:48.9]} 17. O-O {[%clk 0:02:16]} 17... Qxc2 {[%clk 0:01:46.1]} 18.
Bg5 {[%clk 0:02:10.4]} 18... Bxg5 {[%clk 0:01:41.4]} 19. Nfxg5 {[%clk
0:02:06.6]} 19... h6 {[%clk 0:01:18.2]} 20. Rd2 {[%clk 0:02:06.3]} 20... Qc6
{[%clk 0:01:03.4]} 21. Qh5 {[%clk 0:02:02.1]} 21... Kg8 {[%clk 0:01:01.9]} 22.
Nf6+ {[%clk 0:02:00.2]} 22... Kh8 {[%clk 0:00:50.7]} 23. Nxf7+ {[%clk
0:01:58.8]} 23... Rxf7 {[%clk 0:00:47.7]} 24. Qxf7 {[%clk 0:01:58]} 24... gxf6
{[%clk 0:00:46.1]} 25. exf6 {[%clk 0:01:49]} 25... Rg8 {[%clk 0:00:44.9]} 26. g3
{[%clk 0:01:49]} 26... N4d5 {[%clk 0:00:37.9]} 27. Qh5 {[%clk 0:01:30.8]} 27...
Kh7 {[%clk 0:00:36.8]} 28. f7 {[%clk 0:01:24.5]} 28... Rf8 {[%clk 0:00:33.8]}
29. Rd4 {[%clk 0:01:25]} 29... Qd7 {[%clk 0:00:30]} 30. Qe5 {[%clk 0:00:39.1]}
30... Qxf7 {[%clk 0:00:25.7]} 31. Qe2 {[%clk 0:00:37.2]} 31... Qf6 {[%clk
0:00:19.4]} 32. Rg4 {[%clk 0:00:35.2]} 32... Qf5 {[%clk 0:00:14.9]} 33. Rd4
{[%clk 0:00:32]} 33... Qf6 {[%clk 0:00:15.1]} 34. Rg4 {[%clk 0:00:29.4]} 34...
Qf5 {[%clk 0:00:15.4]} 35. Rd4 {[%clk 0:00:30.1]} 35... Qf6 {[%clk 0:00:15.8]}
36. Rg4 {[%clk 0:00:30.8]} 36... Rf7 {[%clk 0:00:16.4]} 37. f4 {[%clk
0:00:21.1]} 37... Qf5 {[%clk 0:00:16]} 38. Rf2 {[%clk 0:00:18.5]} 38... Nf6
{[%clk 0:00:16.3]} 39. Rg5 {[%clk 0:00:18.3]} 39... hxg5 {[%clk 0:00:16.8]} 40.
hxg5 {[%clk 0:00:19.5]} 40... Ng4 {[%clk 0:00:16.1]} 41. Rf1 {[%clk 0:00:18.1]}
41... Kg6 {[%clk 0:00:16.5]} 42. Kg2 {[%clk 0:00:15.8]} 42... Rh7 {[%clk
0:00:16.2]} 43. Rh1 {[%clk 0:00:17.2]} 43... Rxh1 {[%clk 0:00:16.1]} 44. Kxh1
{[%clk 0:00:17.7]} 44... Nd5 {[%clk 0:00:14.1]} 45. Kg2 {[%clk 0:00:17.8]} 45...
Nge3+ {[%clk 0:00:13.7]} 46. Kf2 {[%clk 0:00:17.9]} 46... Ng4+ {[%clk
0:00:13.7]} 47. Kg2 {[%clk 0:00:18.5]} 47... Nde3+ {[%clk 0:00:13.6]} 48. Kg1
{[%clk 0:00:19]} 48... Qe4 {[%clk 0:00:13.8]} 0-1

[Event "*** Qualifier 3: Titled Tuesday 3|2 Blitz"]
[Site "Chess.com"]
[Date "2017.04.18"]
[Round "10"]
[White "Yaacovn"]
[Black "JoachimBN"]
[Result "0-1"]
[WhiteElo "2609"]
[BlackElo "2669"]
[TimeControl "180+2"]
[EndTime "15:17:20 PDT"]
[Termination "JoachimBN won by resignation"]

1. d4 {[%clk 0:03:01.9]} 1... d5 {[%clk 0:02:59.8]} 2. Nf3 {[%clk 0:03:02.8]}
2... Nf6 {[%clk 0:02:59.8]} 3. c4 {[%clk 0:03:01]} 3... dxc4 {[%clk 0:03:00.3]}
4. e3 {[%clk 0:03:01.7]} 4... e6 {[%clk 0:02:57.3]} 5. Bxc4 {[%clk 0:03:02.6]}
5... c5 {[%clk 0:02:57.8]} 6. O-O {[%clk 0:03:03.2]} 6... a6 {[%clk 0:02:53.6]}
7. a4 {[%clk 0:03:03.7]} 7... Nc6 {[%clk 0:02:52.6]} 8. Nc3 {[%clk 0:03:04.4]}
8... Be7 {[%clk 0:02:52.6]} 9. d5 {[%clk 0:03:02.2]} 9... exd5 {[%clk
0:02:51.8]} 10. Bxd5 {[%clk 0:03:04.1]} 10... Nxd5 {[%clk 0:02:49.6]} 11. Nxd5
{[%clk 0:03:06]} 11... Be6 {[%clk 0:02:51]} 12. e4 {[%clk 0:03:07]} 12... O-O
{[%clk 0:02:37.7]} 13. Bf4 {[%clk 0:03:07]} 13... Rc8 {[%clk 0:02:31.3]} 14. Re1
{[%clk 0:03:02]} 14... Re8 {[%clk 0:02:25.2]} 15. h3 {[%clk 0:03:01]} 15... Nb4
{[%clk 0:02:22.6]} 16. Nxe7+ {[%clk 0:02:01.8]} 16... Rxe7 {[%clk 0:02:13.1]}
17. Qe2 {[%clk 0:01:43.7]} 17... Qd3 {[%clk 0:01:57.4]} 18. Bd2 {[%clk
0:01:23.4]} 18... Qxe2 {[%clk 0:01:55.1]} 19. Rxe2 {[%clk 0:01:24.7]} 19... Bc4
{[%clk 0:01:49.3]} 20. Re3 {[%clk 0:01:17.9]} 20... Nc2 {[%clk 0:01:50]} 21. Rc3
{[%clk 0:01:13.7]} 21... Nxa1 {[%clk 0:01:51]} 22. Rxc4 {[%clk 0:01:14.8]} 22...
b5 {[%clk 0:01:52.5]} 23. Rc3 {[%clk 0:01:06.9]} 23... Rxe4 {[%clk 0:01:47.5]}
24. axb5 {[%clk 0:01:03.2]} 24... axb5 {[%clk 0:01:49.4]} 25. Be3 {[%clk
0:01:04.4]} 25... c4 {[%clk 0:01:47.1]} 26. Nd4 {[%clk 0:01:00]} 26... Rb8
{[%clk 0:01:33.9]} 27. Ra3 {[%clk 0:00:47.1]} 27... Rxd4 {[%clk 0:01:29.4]} 28.
Bxd4 {[%clk 0:00:42.6]} 28... Nc2 {[%clk 0:01:30.4]} 29. Ba7 {[%clk 0:00:35.5]}
29... Nxa3 {[%clk 0:01:27.5]} 30. Bxb8 {[%clk 0:00:36.4]} 30... Nc2 {[%clk
0:01:29.4]} 31. Kf1 {[%clk 0:00:33.1]} 31... Nb4 {[%clk 0:01:28.9]} 32. Ke2
{[%clk 0:00:26]} 32... Nd3 {[%clk 0:01:23.7]} 33. b3 {[%clk 0:00:25.5]} 33...
Nc1+ {[%clk 0:01:24.5]} 34. Kd2 {[%clk 0:00:26.6]} 34... Nxb3+ {[%clk
0:01:26.4]} 35. Kc3 {[%clk 0:00:28.2]} 35... Nc5 {[%clk 0:01:21.3]} 36. Bd6
{[%clk 0:00:25.2]} 36... Nd3 {[%clk 0:01:22.2]} 37. f3 {[%clk 0:00:19.8]} 37...
Ne1 {[%clk 0:01:03.5]} 38. Kb4 {[%clk 0:00:13.6]} 38... Nxg2 {[%clk 0:01:04.5]}
39. Kxb5 {[%clk 0:00:13.4]} 39... c3 {[%clk 0:01:05.4]} 40. Kc4 {[%clk
0:00:14.1]} 40... c2 {[%clk 0:01:06.3]} 41. Ba3 {[%clk 0:00:15.4]} 41... Ne1
{[%clk 0:01:03.9]} 42. f4 {[%clk 0:00:15.7]} 42... f5 {[%clk 0:01:03]} 43. Kc3
{[%clk 0:00:14.1]} 43... Kf7 {[%clk 0:01:00.8]} 44. Kd2 {[%clk 0:00:15]} 44...
Ng2 {[%clk 0:00:57.9]} 45. Bd6 {[%clk 0:00:13.5]} 45... Ke6 {[%clk 0:00:59]} 46.
Bf8 {[%clk 0:00:12.4]} 46... g6 {[%clk 0:00:59.4]} 47. Bh6 {[%clk 0:00:12.5]}
47... Kd5 {[%clk 0:01:00.6]} 48. Kxc2 {[%clk 0:00:13.7]} 48... Ke4 {[%clk
0:01:02.2]} 49. Kd2 {[%clk 0:00:15.5]} 49... Nxf4 {[%clk 0:01:03.8]} 50. Ke1
{[%clk 0:00:15.9]} 50... Nxh3 {[%clk 0:01:04.9]} 51. Kf1 {[%clk 0:00:17.1]}
51... Nf4 {[%clk 0:01:06.4]} 52. Kf2 {[%clk 0:00:17.7]} 52... Ne6 {[%clk
0:01:08.3]} 53. Kg3 {[%clk 0:00:19]} 53... g5 {[%clk 0:01:09.3]} 54. Kh3 {[%clk
0:00:19.1]} 54... Kf3 {[%clk 0:01:09.9]} 55. Kh2 {[%clk 0:00:20.4]} 55... g4
{[%clk 0:01:11.3]} 56. Bc1 {[%clk 0:00:21.1]} 56... f4 {[%clk 0:01:12.6]} 57.
Bd2 {[%clk 0:00:21.4]} 57... h5 {[%clk 0:01:14]} 58. Be1 {[%clk 0:00:22.2]}
58... Nd4 {[%clk 0:01:13.6]} 59. Bc3 {[%clk 0:00:22.9]} 59... Ne2 {[%clk
0:01:14.5]} 60. Bf6 {[%clk 0:00:23.9]} 60... g3+ {[%clk 0:01:15.1]} 61. Kh3
{[%clk 0:00:25.2]} 61... g2 {[%clk 0:01:15.5]} 62. Bd4 {[%clk 0:00:26.4]} 62...
Nxd4 {[%clk 0:01:16]} 0-1